{"text_format":"3","workbook":"xlsx","n_sheets":4,"sheets":["Tóm tắt","Tài sản","Nợ","Danh mục"],"not_rendered":{"defined_names":10},"read":"whole","date_system":"1900"}

{"sheet":"Tóm tắt","index":0,"n_rows":12,"n_cols":4,"rows_kept":12}
[null,"Bảng Cân đối"]
[null,null,{"$f":"\"Năm Tài chính \"&YEAR(TODAY())-1","v":"Năm Tài chính 2016"},{"$f":"\"Năm Tài chính \"&YEAR(TODAY())","v":"Năm Tài chính 2017"}]
[null,"Loại Tài sản","Năm Trước","Năm Hiện tại"]
[null,"Tài sản Ngắn hạn",{"$f":"SUMIFS(Tài_sản[Năm Trước],Tài_sản[Loại Tài sản],Bảng_điều_khiển[[#This Row],[Loại Tài sản]])+SUMIFS(Nợ[Năm Trước],Nợ[Loại Nợ],Bảng_điều_khiển[[#This Row],[Loại Tài sản]])","v":600},{"$f":"SUMIFS(Tài_sản[Năm Hiện tại],Tài_sản[Loại Tài sản],Bảng_điều_khiển[[#This Row],[Loại Tài sản]])+SUMIFS(Nợ[Năm Hiện tại],Nợ[Loại Nợ],Bảng_điều_khiển[[#This Row],[Loại Tài sản]])","v":600}]
[null,"Tài sản Cố định",{"$f":"SUMIFS(Tài_sản[Năm Trước],Tài_sản[Loại Tài sản],Bảng_điều_khiển[[#This Row],[Loại Tài sản]])+SUMIFS(Nợ[Năm Trước],Nợ[Loại Nợ],Bảng_điều_khiển[[#This Row],[Loại Tài sản]])","v":{"v":-100,"d":"-100 "}},{"$f":"SUMIFS(Tài_sản[Năm Hiện tại],Tài_sản[Loại Tài sản],Bảng_điều_khiển[[#This Row],[Loại Tài sản]])+SUMIFS(Nợ[Năm Hiện tại],Nợ[Loại Nợ],Bảng_điều_khiển[[#This Row],[Loại Tài sản]])","v":{"v":-85,"d":"-85 "}}]
[null,"Tài sản Khác",{"$f":"SUMIFS(Tài_sản[Năm Trước],Tài_sản[Loại Tài sản],Bảng_điều_khiển[[#This Row],[Loại Tài sản]])+SUMIFS(Nợ[Năm Trước],Nợ[Loại Nợ],Bảng_điều_khiển[[#This Row],[Loại Tài sản]])","v":0},{"$f":"SUMIFS(Tài_sản[Năm Hiện tại],Tài_sản[Loại Tài sản],Bảng_điều_khiển[[#This Row],[Loại Tài sản]])+SUMIFS(Nợ[Năm Hiện tại],Nợ[Loại Nợ],Bảng_điều_khiển[[#This Row],[Loại Tài sản]])","v":0}]
[null,"Nợ Ngắn hạn",{"$f":"SUMIFS(Tài_sản[Năm Trước],Tài_sản[Loại Tài sản],Bảng_điều_khiển[[#This Row],[Loại Tài sản]])+SUMIFS(Nợ[Năm Trước],Nợ[Loại Nợ],Bảng_điều_khiển[[#This Row],[Loại Tài sản]])","v":500},{"$f":"SUMIFS(Tài_sản[Năm Hiện tại],Tài_sản[Loại Tài sản],Bảng_điều_khiển[[#This Row],[Loại Tài sản]])+SUMIFS(Nợ[Năm Hiện tại],Nợ[Loại Nợ],Bảng_điều_khiển[[#This Row],[Loại Tài sản]])","v":350}]
[null,"Nợ Dài hạn",{"$f":"SUMIFS(Tài_sản[Năm Trước],Tài_sản[Loại Tài sản],Bảng_điều_khiển[[#This Row],[Loại Tài sản]])+SUMIFS(Nợ[Năm Trước],Nợ[Loại Nợ],Bảng_điều_khiển[[#This Row],[Loại Tài sản]])","v":0},{"$f":"SUMIFS(Tài_sản[Năm Hiện tại],Tài_sản[Loại Tài sản],Bảng_điều_khiển[[#This Row],[Loại Tài sản]])+SUMIFS(Nợ[Năm Hiện tại],Nợ[Loại Nợ],Bảng_điều_khiển[[#This Row],[Loại Tài sản]])","v":0}]
[null,"Vốn Chủ sở hữu",{"$f":"SUMIFS(Tài_sản[Năm Trước],Tài_sản[Loại Tài sản],Bảng_điều_khiển[[#This Row],[Loại Tài sản]])+SUMIFS(Nợ[Năm Trước],Nợ[Loại Nợ],Bảng_điều_khiển[[#This Row],[Loại Tài sản]])","v":0},{"$f":"SUMIFS(Tài_sản[Năm Hiện tại],Tài_sản[Loại Tài sản],Bảng_điều_khiển[[#This Row],[Loại Tài sản]])+SUMIFS(Nợ[Năm Hiện tại],Nợ[Loại Nợ],Bảng_điều_khiển[[#This Row],[Loại Tài sản]])","v":350}]
[null,"Tổng Tài sản",{"$f":"Tài_sản[[#Totals],[Năm Trước]]","v":500},{"$f":"Tài_sản[[#Totals],[Năm Hiện tại]]","v":515}]
[null,"Tổng Nợ & Vốn Cổ đông",{"$f":"Nợ[[#Totals],[Năm Trước]]","v":500},{"$f":"Nợ[[#Totals],[Năm Hiện tại]]","v":700}]
[null,"Số dư",{"$f":"C10-C11","v":0},{"$f":"D10-D11","v":{"v":-185,"d":"-185 "}}]

{"sheet":"Tài sản","index":1,"n_rows":14,"n_cols":5,"rows_kept":14}
[null,"Tài sản"]
[{"$nulls":3},{"$f":"NĂM_TÀI_CHÍNH","v":"Năm Tài chính 2016"},{"$f":"NĂM_TÀI_CHÍNH_2","v":"Năm Tài chính 2017"}]
[null,"Loại Tài sản","Mô tả","Năm Trước","Năm Hiện tại"]
[null,"Tài sản Ngắn hạn","Tiền mặt",600,600]
[null,"Tài sản Ngắn hạn","Đầu tư"]
[null,"Tài sản Ngắn hạn","Hàng tồn kho"]
[null,"Tài sản Ngắn hạn","Các khoản phải thu"]
[null,"Tài sản Ngắn hạn","Các khoản phí trả trước"]
[null,"Tài sản Cố định","Bất động sản và thiết bị"]
[null,"Tài sản Cố định","Những sửa chữa lớn cho tài sản thuê"]
[null,"Tài sản Cố định","Vốn và các khoản đầu tư khác"]
[null,"Tài sản Cố định","Trừ đi khấu hao tích lũy (Giá trị Âm)",{"v":-100,"d":"-100 "},{"v":-85,"d":"-85 "}]
[null,"Tài sản Khác","Khoản từ thiện"]
[null,"Tổng Tài sản",null,{"$f":"SUBTOTAL(109,Tài_sản[Năm Trước])","v":500},{"$f":"SUBTOTAL(109,Tài_sản[Năm Hiện tại])","v":515}]

{"sheet":"Nợ","index":2,"n_rows":12,"n_cols":5,"rows_kept":12}
[null,"Nợ"]
[{"$nulls":3},{"$f":"NĂM_TÀI_CHÍNH","v":"Năm Tài chính 2016"},{"$f":"NĂM_TÀI_CHÍNH_2","v":"Năm Tài chính 2017"}]
[null,"Loại Nợ","Mô tả","Năm Trước","Năm Hiện tại"]
[null,"Nợ Ngắn hạn","Các khoản phải trả",null,350]
[null,"Nợ Ngắn hạn","Lương phải trả tích lũy"]
[null,"Nợ Ngắn hạn","Lương, phúc lợi tích lũy",500]
[null,"Nợ Ngắn hạn","Thuế thu nhập phải nộp"]
[null,"Nợ Ngắn hạn","Doanh thu nhận trước"]
[null,"Nợ Dài hạn","Khoản thế chấp phải trả"]
[null,"Vốn Chủ sở hữu","Vốn đầu tư",null,350]
[null,"Vốn Chủ sở hữu","Lợi nhuận giữ lại lũy kế"]
[null,"Tổng Nợ & Vốn Cổ đông",null,{"$f":"SUBTOTAL(109,Nợ[Năm Trước])","v":500},{"$f":"SUBTOTAL(109,Nợ[Năm Hiện tại])","v":700}]

{"sheet":"Danh mục","index":3,"n_rows":9,"n_cols":2,"rows_kept":9}
[null,"Danh mục"]
[]
[null,"Danh mục"]
[null,"Tài sản Ngắn hạn"]
[null,"Tài sản Cố định"]
[null,"Tài sản Khác"]
[null,"Nợ Ngắn hạn"]
[null,"Nợ Dài hạn"]
[null,"Vốn Chủ sở hữu"]